bitfinex-derivatives/quotes_BTCF0:USTF0_20250728
["timestamp","ask_amount","ask_price","bid_price","bid_amount"]
[1753670224079,2.45976947,119780.0,119770.0,0.77835091]
[1753670224782,1.73780947,119780.0,119770.0,0.77835091]
[1753670225083,2.45900947,119780.0,119770.0,0.77835091]
[1753670225383,2.45836947,119780.0,119770.0,0.77835091]
[1753670226684,2.45836947,119780.0,119770.0,0.71908019]
[1753670226884,1.73780947,119780.0,119770.0,0.79317554]
[1753670227084,2.45800947,119780.0,119770.0,0.79317554]
[1753670228077,2.45800947,119780.0,119770.0,0.62623614]
[1753670228283,2.45800947,119780.0,119770.0,0.61133207]
[1753670229386,2.45800947,119780.0,119770.0,0.77827177]
[1753670231084,2.45800947,119780.0,119770.0,0.71908049]
[1753670232491,1.73780947,119780.0,119770.0,0.71908049]
[1753670232690,2.45732947,119780.0,119770.0,0.71908049]
[1753670233785,2.45732947,119780.0,119770.0,0.77827195]
[1753670233988,2.18105735,119780.0,119770.0,0.77827195]
[1753670234188,2.45732947,119780.0,119770.0,0.77827195]
[1753670234388,2.45732947,119780.0,119770.0,0.71908049]
[1753670235291,1.73780947,119780.0,119770.0,0.71908049]
[1753670235491,2.44886168,119780.0,119770.0,0.71908049]
[1753670235793,2.44573889,119780.0,119770.0,0.71908049]
[1753670235990,1.69939577,119780.0,119770.0,0.77828384]
[1753670236492,2.41883577,119780.0,119770.0,0.77828384]
[1753670237094,2.41669577,119780.0,119770.0,0.77828384]
[1753670237286,2.19329789,119780.0,119770.0,0.77828384]
[1753670238387,1.91702577,119780.0,119770.0,0.77828384]
[1753670238591,2.19329789,119780.0,119770.0,0.77828384]
[1753670238899,2.19329789,119780.0,119770.0,0.71908049]
[1753670239694,2.19329789,119780.0,119770.0,0.79317584]
[1753670240493,2.19329789,119780.0,119770.0,0.71908049]
[1753670240692,1.91702577,119780.0,119770.0,0.71908049]
[1753670241291,1.91285577,119780.0,119770.0,0.71908049]
[1753670241491,2.18912789,119780.0,119770.0,0.79317584]
[1753670241685,2.18637789,119780.0,119770.0,0.79317584]
[1753670242896,1.91010577,119780.0,119770.0,0.79317584]
[1753670243092,2.18637789,119780.0,119770.0,0.79317584]
[1753670243996,1.05820815,119780.0,119770.0,0.79317584]
[1753670244292,1.32940026,119780.0,119770.0,0.79317584]
[1753670244498,0.36831618,119780.0,119770.0,0.79317584]
[1753670244798,1.87384,119820.0,119800.0,0.2150779]
[1753670244998,1.01449393,119810.0,119800.0,0.2150779]
[1753670245198,1.77031985,119810.0,119800.0,0.2150779]
[1753670245498,1.77031985,119810.0,119800.0,0.29856777]
[1753670245996,1.77027985,119810.0,119800.0,0.29856777]
[1753670246399,1.77027985,119810.0,119800.0,0.13166987]
[1753670246800,1.76927985,119810.0,119800.0,0.13166987]
[1753670247098,1.77627985,119810.0,119800.0,0.13166987]
[1753670247299,1.77627985,119810.0,119800.0,0.15845965]
[1753670247896,1.77627985,119810.0,119800.0,0.22688762]
[1753670248706,1.78027985,119810.0,119800.0,0.22688762]
[1753670249598,1.78027985,119810.0,119800.0,0.39378562]
[1753670249999,1.76189804,119810.0,119800.0,0.39378562]
[1753670250399,0.76682592,119810.0,119800.0,0.80973562]
[1753670250604,1.76081804,119810.0,119800.0,0.80973562]
[1753670250897,1.76181804,119810.0,119800.0,0.80973562]
[1753670251102,1.48554592,119810.0,119800.0,0.80973562]
[1753670251304,1.76181804,119810.0,119800.0,0.80973562]
[1753670251499,1.76081804,119810.0,119800.0,0.80973562]
[1753670252598,0.35721618,119810.0,119800.0,0.80973562]
[1753670252804,1.76077804,119810.0,119800.0,0.80973562]
[1753670252999,0.76582592,119810.0,119800.0,0.80973562]
[1753670253206,1.02634618,119810.0,119800.0,0.86898107]
[1753670253404,1.2907183,119810.0,119800.0,0.86898107]
[1753670253699,0.001,119830.0,119820.0,0.1668706]
[1753670253910,1.59507737,119830.0,119820.0,0.6310006]
[1753670254215,1.59507737,119830.0,119820.0,0.71446957]
[1753670254614,1.61386539,119830.0,119820.0,0.71446957]
[1753670254815,1.61386539,119830.0,119820.0,0.54759897]
[1753670255007,1.22661632,119830.0,119820.0,0.71446957]
[1753670255215,1.62286539,119830.0,119820.0,0.71446957]
[1753670255419,0.90418539,119830.0,119820.0,0.71446957]
[1753670255620,1.62278539,119830.0,119820.0,0.71446957]
[1753670256618,1.62278539,119830.0,119820.0,0.71446967]
[1753670257317,1.62274539,119830.0,119820.0,0.71446967]
[1753670259224,1.34647327,119830.0,119820.0,0.71446967]
[1753670259422,1.62274539,119830.0,119820.0,0.71446967]
[1753670262825,1.62274539,119830.0,119820.0,0.77371512]
[1753670263826,1.60395737,119830.0,119820.0,0.77371512]
[1753670265523,0.88539737,119830.0,119820.0,0.77371512]
[1753670265725,1.60367737,119830.0,119820.0,0.77371512]
[1753670266019,1.87994949,119830.0,119810.0,0.10742545]
[1753670266223,1.17096754,119820.0,119800.0,0.09521775]
[1753670266429,1.15366949,119810.0,119800.0,0.05924545]
[1753670266623,1.32055389,119810.0,119800.0,0.08345503]
[1753670266819,1.15366949,119810.0,119790.0,0.04818]
[1753670267014,1.32896525,119800.0,119790.0,0.04818]
[1753670267324,1.88150949,119800.0,119790.0,0.13164548]
[1753670267626,1.88150949,119800.0,119790.0,0.15840213]
[1753670267923,1.88118949,119800.0,119790.0,0.22674761]
[1753670268122,1.88118949,119800.0,119790.0,0.17856761]
[1753670268323,1.88118949,119800.0,119790.0,0.09610213]
[1753670268519,2.04808809,119800.0,119790.0,0.09610213]
[1753670268826,0.1679165,119790.0,119770.0,0.12227535]
[1753670269017,0.1679165,119790.0,119770.0,0.2151204]
[1753670269018,1.60443737,119780.0,119770.0,0.2151204]
[1753670269215,1.60443737,119780.0,119770.0,0.3253125]
[1753670269524,1.60443737,119780.0,119770.0,0.1583721]
[1753670270415,1.60443737,119780.0,119770.0,0.22582287]
[1753670270728,1.62289284,119780.0,119770.0,0.22582287]
[1753670271329,1.62389284,119780.0,119770.0,0.22582287]
[1753670272026,1.23764377,119780.0,119770.0,0.22582287]
[1753670272223,1.62489284,119780.0,119770.0,0.22582287]
[1753670272530,1.62489284,119780.0,119770.0,0.38644287]
[1753670273430,1.34862072,119780.0,119770.0,0.38644287]
[1753670273729,1.62489284,119780.0,119770.0,0.38644287]
[1753670274028,0.29488497,119820.0,119800.0,0.46413]
[1753670274229,1.39076119,119810.0,119800.0,0.46413]
[1753670274835,1.60363737,119810.0,119800.0,0.71451847]
[1753670276030,1.60315737,119810.0,119800.0,0.71451847]
[1753670276630,1.60315737,119810.0,119800.0,0.77365531]
[1753670277122,0.60012525,119810.0,119800.0,0.77365531]
[1753670277324,0.001,119820.0,119810.0,0.6330047]
[1753670277525,1.56155828,119820.0,119810.0,0.6330047]
[1753670277922,0.83563828,119820.0,119810.0,0.71647367]
[1753670278218,0.72636,119820.0,119810.0,1.05188263]
[1753670278425,0.70683,119820.0,119810.0,1.05188263]
[1753670278927,0.70683,119820.0,119810.0,0.77561051]
[1753670279132,0.70783,119820.0,119810.0,1.05188263]
[1753670280133,0.70783,119820.0,119810.0,0.77561051]
[1753670280633,0.70883,119820.0,119810.0,0.77561051]
[1753670280835,1.26719616,119820.0,119810.0,0.60872581]
[1753670281031,1.54346828,119820.0,119810.0,0.60872581]
[1753670281226,1.54346828,119820.0,119810.0,0.54010581]
[1753670281431,1.54346828,119820.0,119810.0,0.60872581]
[1753670281630,1.56241893,119820.0,119810.0,0.13083897]
[1753670281825,1.56241893,119820.0,119810.0,0.08346897]
[1753670281826,1.72928963,119820.0,119810.0,0.08346897]
[1753670282027,1.60413763,119820.0,119800.0,0.10650684]
[1753670282226,0.83463828,119810.0,119800.0,0.04737]
[1753670282427,0.83463828,119810.0,119800.0,0.130832]
[1753670283028,0.83463828,119810.0,119800.0,0.083462]
[1753670283232,0.208637,119800.0,119770.0,0.10650684]
[1753670283427,0.85656119,119780.0,119770.0,0.17183369]
[1753670283733,0.85656119,119780.0,119770.0,0.11269685]
[1753670283925,0.85656119,119780.0,119770.0,0.22377285]
[1753670284322,0.85656119,119780.0,119770.0,0.14028995]
[1753670284728,0.90395099,119780.0,119770.0,0.22377982]
[1753670285034,0.90495099,119780.0,119770.0,0.14028995]
[1753670285230,0.90495099,119780.0,119770.0,0.22377982]
[1753670286332,0.90495099,119780.0,119770.0,0.22677982]
[1753670286835,0.90695099,119780.0,119770.0,0.22377982]
[1753670287335,0.19304,119760.0,119750.0,0.04737]
[1753670287631,1.08979699,119760.0,119750.0,0.08348987]
[1753670287929,0.92284259,119760.0,119740.0,0.04737]
[1753670288137,1.81215929,119750.0,119740.0,0.04737]
[1753670288535,1.81215929,119750.0,119740.0,0.15823752]
[1753670288536,1.64519099,119750.0,119740.0,0.15823752]
[1753670289836,1.48849737,119750.0,119740.0,0.15823752]
[1753670290035,1.81215929,119750.0,119740.0,0.22605303]
[1753670290231,1.64519099,119750.0,119740.0,0.22605303]
[1753670290426,1.81215929,119750.0,119740.0,0.14254921]
[1753670291528,2.13582121,119750.0,119740.0,0.06781551]
[1753670291928,0.3600222,119740.0,119730.0,0.02742406]
[1753670292134,0.3600222,119740.0,119720.0,0.04737]
[1753670292135,0.2830862,119730.0,119720.0,0.04737]
[1753670292333,1.81538719,119730.0,119720.0,0.04737]
[1753670292938,1.49172527,119730.0,119720.0,0.04737]
[1753670293138,1.32472907,119730.0,119720.0,0.04737]
[1753670293333,1.81538719,119730.0,119720.0,0.04737]
[1753670293735,1.64839099,119730.0,119720.0,0.07660502]
[1753670294140,1.64839099,119730.0,119720.0,0.14191267]
[1753670294733,0.90395099,119730.0,119720.0,0.62265277]
[1753670294935,0.82039,119730.0,119720.0,1.13485943]
[1753670295149,0.74344,119730.0,119720.0,1.13485943]
[1753670295541,0.21151593,119740.0,119730.0,0.4658261]
[1753670295737,0.7438,119740.0,119730.0,0.6331161]
[1753670295937,0.07695,119750.0,119740.0,0.3498222]
[1753670296145,0.82071,119750.0,119740.0,0.6331022]
[1753670296540,1.26046192,119750.0,119740.0,0.54964474]
[1753670296737,1.64771099,119750.0,119740.0,0.13089474]
[1753670297140,1.32404907,119750.0,119740.0,0.13089474]
[1753670297341,2.13834091,119750.0,119740.0,0.04737]
[1753670297549,0.3600219,119740.0,119730.0,0.04737]
[1753670297741,0.53521532,119740.0,119720.0,0.09454267]
[1753670298042,1.64855099,119730.0,119720.0,0.22542346]
[1753670298842,1.32488907,119730.0,119720.0,0.39243316]
[1753670299144,1.64855099,119730.0,119720.0,0.22542346]
[1753670299347,1.64855099,119730.0,119720.0,0.36519814]
[1753670299550,1.64855099,119730.0,119720.0,0.36619814]
[1753670299754,1.64855099,119730.0,119720.0,0.36419814]
[1753670300252,1.64855099,119730.0,119720.0,0.53148814]
[1753670300452,1.64855099,119730.0,119720.0,0.53248814]
[1753670300853,1.64855099,119730.0,119720.0,0.60110814]
[1753670301854,1.32488907,119730.0,119720.0,0.60110824]
[1753670302055,1.64855099,119730.0,119720.0,0.60110824]
[1753670302753,1.64855099,119730.0,119720.0,0.43409844]
[1753670302948,1.64855099,119730.0,119720.0,0.19818844]
[1753670303855,1.64855099,119730.0,119720.0,0.36519824]
[1753670304158,1.64855099,119730.0,119720.0,0.53248824]
[1753670304455,1.64855099,119730.0,119720.0,0.67892824]
[1753670304658,1.32488907,119730.0,119720.0,0.67892824]
[1753670304957,1.64855099,119730.0,119720.0,0.67892824]
[1753670306052,1.64855099,119730.0,119720.0,0.51191844]
[1753670306455,1.64855099,119730.0,119720.0,0.19818844]
[1753670306950,1.32488907,119730.0,119720.0,0.19818844]
[1753670307155,1.64855099,119730.0,119720.0,0.19818844]
[1753670307552,1.64855099,119730.0,119720.0,0.36519824]
[1753670307760,1.64855099,119730.0,119720.0,0.53187824]
[1753670308455,1.34354817,119730.0,119720.0,0.68369814]
[1753670308663,1.32488907,119730.0,119720.0,0.79489814]
[1753670308963,1.64855099,119730.0,119720.0,0.79489814]
[1753670309456,0.90395099,119730.0,119720.0,0.79489814]
[1753670309657,1.64787099,119730.0,119720.0,0.79489814]
[1753670310056,1.64787099,119730.0,119720.0,0.62788844]
[1753670311368,1.64787099,119730.0,119720.0,0.38977844]
[1753670311665,1.64787099,119730.0,119720.0,0.27857844]
[1753670311862,1.32420907,119730.0,119720.0,0.27857844]
[1753670312063,1.64787099,119730.0,119720.0,0.27857844]
[1753670312263,0.90395099,119730.0,119720.0,0.27857844]
[1753670312459,1.07094679,119730.0,119720.0,0.11467765]
[1753670312762,1.07094679,119730.0,119720.0,0.06730765]
[1753670313463,2.96822679,119730.0,119720.0,0.06730765]
[1753670313668,0.01542,119710.0,119700.0,0.04759467]
[1753670313859,1.25770562,119710.0,119700.0,0.04759467]
[1753670314060,1.96861661,119710.0,119700.0,0.0658125]
[1753670314262,1.64495469,119710.0,119700.0,8.467e-05]
[1753670314865,1.64495469,119710.0,119700.0,0.00308467]
[1753670315265,1.64495469,119710.0,119700.0,0.00708467]
[1753670315767,1.64495469,119710.0,119700.0,0.05359467]
[1753670316166,1.64495469,119710.0,119700.0,0.00608467]
[1753670316768,1.64495469,119710.0,119700.0,0.00208467]
[1753670316969,1.64495469,119710.0,119700.0,0.00408467]
[1753670318263,1.96861661,119710.0,119690.0,0.11412288]
[1753670318468,0.83942114,119700.0,119690.0,0.11412288]
[1753670318963,1.22667021,119700.0,119690.0,0.11412288]
[1753670319368,1.22667021,119700.0,119680.0,0.04751]
[1753670319369,0.1824711,119690.0,119680.0,0.04751]
[1753670319569,1.26145302,119690.0,119680.0,0.04751]
[1753670319768,1.32504017,119690.0,119680.0,0.04751]
[1753670319964,1.64870209,119690.0,119680.0,0.04751]
[1753670320170,1.64870209,119690.0,119680.0,0.07426242]
[1753670320672,1.64670209,119690.0,119680.0,0.07426242]
[1753670320872,1.15598907,119690.0,119680.0,0.07426242]
[1753670321170,1.64670209,119690.0,119680.0,0.07426242]
[1753670321365,1.64670209,119690.0,119680.0,0.08126242]
[1753670321775,0.90102209,119690.0,119680.0,0.08126242]
[1753670321969,1.64594209,119690.0,119680.0,0.08126242]
[1753670322474,1.64594209,119690.0,119680.0,0.14867086]
[1753670325273,1.32234413,119690.0,119680.0,0.14567086]
[1753670325466,1.64600605,119690.0,119680.0,0.09416086]
[1753670325671,1.64600605,119690.0,119670.0,0.04751]
[1753670325672,0.1792851,119680.0,119670.0,0.04751]
[1753670325867,0.51058702,119680.0,119670.0,0.11489187]
[1753670326079,0.89783609,119680.0,119670.0,0.06738187]
[1753670326274,0.179299,119670.0,119660.0,0.04751]
[1753670326476,1.27973102,119670.0,119660.0,0.04751]
[1753670326680,1.66698009,119670.0,119660.0,0.04751]
[1753670326876,0.91678009,119670.0,119660.0,0.04751]
[1753670327074,1.66678009,119670.0,119660.0,0.04751]
[1753670327877,1.49970109,119670.0,119660.0,0.07435705]
[1753670328976,0.74970109,119670.0,119660.0,0.07435705]
[1753670329177,1.17619917,119670.0,119660.0,0.75471647]
[1753670329378,1.17619917,119670.0,119660.0,0.58762367]
[1753670329580,1.17619917,119670.0,119660.0,0.75471647]
[1753670329778,1.17619917,119670.0,119660.0,0.58762367]
[1753670329981,1.66693999,119670.0,119660.0,0.58762367]
[1753670330683,1.66693999,119670.0,119660.0,0.14110656]
[1753670331783,1.49986109,119670.0,119660.0,0.14110656]
[1753670332084,1.49986109,119670.0,119660.0,0.57080656]
[1753670334382,1.49930109,119670.0,119660.0,0.57080656]
[1753670334779,1.17563917,119670.0,119660.0,0.57080656]
[1753670334980,1.49930109,119670.0,119660.0,0.57080656]
[1753670335576,1.17563917,119670.0,119660.0,0.57080656]
[1753670335885,1.49930109,119670.0,119660.0,0.57080656]
[1753670337087,1.17563917,119670.0,119660.0,0.57080656]
[1753670337287,1.49930109,119670.0,119660.0,0.57080656]
[1753670337681,1.49938576,119670.0,119660.0,0.14110656]
[1753670337881,1.49938576,119670.0,119660.0,0.56630656]
[1753670338082,1.49742576,119670.0,119660.0,0.56630656]
[1753670338283,1.17376384,119670.0,119660.0,0.56630656]
[1753670338588,1.49742576,119670.0,119660.0,0.56630656]
[1753670338883,1.45040887,119670.0,119660.0,0.56630656]
[1753670339393,1.44956887,119670.0,119660.0,0.64987318]
[1753670339586,1.17292384,119670.0,119660.0,0.64987318]
[1753670339883,1.15282384,119670.0,119660.0,1.09361101]
[1753670340089,1.15282384,119670.0,119660.0,0.81696598]
[1753670341583,0.39782641,119670.0,119660.0,1.55820166]
[1753670341783,1.13365374,119670.0,119660.0,1.55820166]
[1753670343086,1.13365374,119670.0,119660.0,1.6173385]
[1753670343379,1.12186093,119670.0,119660.0,1.3673385]
[1753670344383,1.12186093,119670.0,119660.0,1.3683385]
[1753670345489,1.10564093,119670.0,119660.0,1.3683385]
[1753670346183,0.75076,119680.0,119670.0,0.3515289]
[1753670346381,0.01834215,119700.0,119670.0,0.6397689]
[1753670346689,0.75108,119690.0,119680.0,0.6815162]
[1753670346884,0.01986,119700.0,119690.0,0.167051]
[1753670347085,0.01986,119700.0,119690.0,0.4407524]
[1753670347086,0.75076,119700.0,119690.0,0.4407524]
[1753670347390,0.75076,119700.0,119690.0,0.52430505]
[1753670347590,0.75076,119700.0,119690.0,0.76505505]
[1753670347992,1.08707968,119700.0,119690.0,0.55624265]
[1753670348188,1.08707968,119700.0,119690.0,0.38115265]
[1753670348388,1.08807968,119700.0,119690.0,0.38115265]
[1753670348789,0.76398,119700.0,119690.0,0.45006265]
[1753670349093,1.09007968,119700.0,119690.0,0.13104265]
[1753670349281,1.09207968,119700.0,119690.0,0.13104265]
[1753670350391,0.76798,119700.0,119690.0,0.13104265]
[1753670350588,1.09207968,119700.0,119690.0,0.19017949]
[1753670351090,1.09055968,119700.0,119690.0,0.19017949]
[1753670351283,0.34895968,119700.0,119690.0,0.19017949]
[1753670351485,1.09035968,119700.0,119690.0,0.19017949]
[1753670352095,1.09035968,119700.0,119690.0,0.36201949]
[1753670352794,1.08931968,119700.0,119690.0,0.36201949]
[1753670353989,1.44753966,119700.0,119680.0,0.10662684]
[1753670354190,0.01986,119680.0,119670.0,0.04749]
[1753670354487,1.08347968,119680.0,119670.0,0.13103567]
[1753670355397,0.75938,119680.0,119670.0,0.20513102]
[1753670355695,1.08347968,119680.0,119670.0,0.20513102]
[1753670355897,1.08447968,119680.0,119670.0,0.20513102]
[1753670356088,1.27024195,119680.0,119670.0,0.12158535]
[1753670356289,1.27024195,119680.0,119670.0,0.05930318]
[1753670356492,1.27224195,119680.0,119670.0,0.05166318]
[1753670357384,0.1670789,119670.0,119660.0,0.09359656]
[1753670357588,0.49117858,119670.0,119650.0,0.12158535]
[1753670357790,1.06201968,119660.0,119650.0,0.12158535]
[1753670357994,1.06201968,119660.0,119650.0,0.23267193]
[1753670358399,1.06201968,119660.0,119650.0,0.29924222]
[1753670358702,1.06201968,119660.0,119650.0,0.14158025]
[1753670358996,1.22911258,119660.0,119650.0,0.14158025]
[1753670359497,1.22911258,119660.0,119650.0,0.14258025]
[1753670360905,1.06201968,119660.0,119650.0,0.14258025]
[1753670361599,1.06201968,119660.0,119650.0,0.06757029]
[1753670361600,1.55321226,119660.0,119650.0,0.06757029]
[1753670362201,1.73868047,119660.0,119650.0,0.06757029]
[1753670362803,1.36729522,119660.0,119650.0,0.06757029]
[1753670364003,1.36729522,119660.0,119650.0,0.001]
[1753670364798,1.41486196,119660.0,119650.0,0.001]
[1753670365909,1.73924281,119660.0,119650.0,0.001]
[1753670369414,0.1671208,119640.0,119630.0,0.0479137]
[1753670369716,1.2464869,119640.0,119630.0,0.0479137]
[1753670369899,1.2464869,119640.0,119630.0,0.3604137]
[1753670370399,1.0793661,119640.0,119630.0,0.6409085]
[1753670370598,1.0793661,119640.0,119630.0,0.4737737]
[1753670371504,1.2464869,119640.0,119630.0,0.4767737]
[1753670371704,1.0793661,119640.0,119630.0,0.50596557]
[1753670372009,1.0793661,119640.0,119630.0,0.67310037]
[1753670372211,1.0778861,119640.0,119630.0,0.75668794]
[1753670372510,0.75342525,119640.0,119630.0,0.75668794]
[1753670372707,1.0778061,119640.0,119630.0,0.75668794]
[1753670373105,0.75342525,119640.0,119630.0,0.8238935]
[1753670373306,1.0778061,119640.0,119630.0,0.6567587]
[1753670373929,0.75342525,119640.0,119630.0,1.14827425]
[1753670374105,0.75342525,119640.0,119630.0,0.8238934]
[1753670374413,0.75342525,119640.0,119630.0,0.6567587]
[1753670376011,0.75342525,119640.0,119630.0,0.8238934]
[1753670376407,0.75342525,119640.0,119630.0,0.6567587]
[1753670376612,0.75342525,119640.0,119630.0,0.8238934]
[1753670376911,0.75342525,119640.0,119630.0,0.6567587]
[1753670377713,0.75342525,119640.0,119630.0,0.8238935]
[1753670377912,1.0778061,119640.0,119630.0,0.8238935]
[1753670378505,0.75342525,119640.0,119630.0,0.8238935]
[1753670378908,1.0778061,119640.0,119630.0,0.8238935]
[1753670379110,0.75342525,119640.0,119630.0,0.8238935]
[1753670380704,1.0778061,119640.0,119630.0,0.8238935]
[1753670380904,1.05894085,119640.0,119630.0,0.6567587]
[1753670381503,1.07725227,119640.0,119630.0,0.6567587]
[1753670381714,1.07725227,119640.0,119630.0,0.8238934]
[1753670382209,1.07725227,119640.0,119630.0,0.6567587]
[1753670382413,1.07725227,119640.0,119630.0,0.8238934]
[1753670382908,0.2271929,119660.0,119650.0,0.04774]
[1753670382909,0.0183242,119660.0,119650.0,0.04774]
[1753670383111,1.07482505,119660.0,119650.0,0.4736]
[1753670383310,0.0183242,119660.0,119650.0,0.6407069]
[1753670383507,0.0183242,119660.0,119650.0,0.72429447]
[1753670383703,0.732,119660.0,119650.0,0.78356546]
[1753670384516,0.32438085,119670.0,119660.0,0.51116]
[1753670384710,1.05670085,119670.0,119660.0,0.51116]
[1753670384912,1.05670085,119670.0,119660.0,0.57043099]
[1753670385112,1.05670085,119670.0,119660.0,0.86706761]
[1753670385617,1.05670085,119670.0,119660.0,0.82529521]
[1753670386411,0.73232,119670.0,119660.0,0.82529521]
[1753670386619,0.73332,119670.0,119660.0,0.82529521]
[1753670387014,1.0099332,119670.0,119660.0,0.82529521]
[1753670387214,1.0099332,119670.0,119660.0,0.76602422]
[1753670387918,0.73332,119670.0,119660.0,0.76602422]
[1753670388121,1.0099332,119670.0,119660.0,0.76602422]
[1753670389018,1.0099332,119670.0,119660.0,0.82534682]
[1753670389422,0.73332,119670.0,119660.0,0.82534682]
[1753670389620,0.73332,119670.0,119660.0,0.82533907]
[1753670391218,0.73332,119670.0,119660.0,1.10195227]
[1753670391422,0.73332,119670.0,119660.0,0.82533907]
[1753670392322,0.73332,119670.0,119660.0,1.04263742]
[1753670392323,0.71817437,119670.0,119660.0,1.04263742]
[1753670392521,0.71817437,119670.0,119660.0,1.11673277]
[1753670393121,0.001,119670.0,119660.0,1.11673277]
[1753670393619,0.72905727,119680.0,119670.0,0.6406788]
[1753670393923,1.42167047,119700.0,119690.0,0.4736]
[1753670394116,2.14971047,119700.0,119690.0,0.4736]
[1753670394513,0.2766132,119700.0,119690.0,0.4736]
[1753670394716,1.0042932,119700.0,119690.0,0.4736]
[1753670395624,1.0052932,119700.0,119690.0,0.4736]
[1753670396120,1.0052932,119700.0,119690.0,0.640651]
[1753670396328,1.0072932,119700.0,119690.0,0.4736]
[1753670398429,1.4509435,119700.0,119690.0,0.11458441]
[1753670398620,1.1743303,119700.0,119690.0,0.06684441]
[1753670398924,1.2578501,119700.0,119680.0,0.04923]
[1753670399113,0.2766132,119690.0,119680.0,0.04923]
[1753670399315,0.2766132,119690.0,119680.0,0.13277567]
[1753670400523,0.2776132,119690.0,119680.0,0.13277567]
[1753670401418,0.2776132,119690.0,119670.0,0.10847411]
[1753670401419,0.7630403,119690.0,119670.0,0.10847411]
[1753670401624,0.7630403,119690.0,119660.0,0.10847411]
[1753670401625,1.46930905,119680.0,119660.0,0.10847411]
[1753670401824,0.2766132,119670.0,119660.0,0.10847411]
[1753670402014,0.2766132,119670.0,119660.0,0.35911956]
[1753670402216,0.2766132,119670.0,119660.0,0.59837956]
[1753670402421,0.2766132,119670.0,119660.0,0.78647956]
[1753670402623,0.2766132,119670.0,119660.0,0.82825246]
[1753670403027,0.74901775,119680.0,119670.0,0.6436689]
[1753670403223,1.02563095,119680.0,119670.0,0.6436689]
[1753670403527,1.02563095,119680.0,119670.0,0.53583411]
[1753670403824,1.02563095,119680.0,119660.0,0.06224411]
[1753670404028,0.4436921,119670.0,119660.0,0.001]
[1753670404529,0.5272341,119670.0,119650.0,0.10847411]
[1753670404729,1.0073332,119660.0,119650.0,0.10847411]
[1753670407926,1.0073332,119660.0,119650.0,0.10947411]
[1753670408122,0.73072,119660.0,119650.0,0.53683411]
[1753670408528,0.73196,119670.0,119660.0,0.47659]
[1753670408727,0.73196,119670.0,119660.0,0.53583411]
[1753670408928,1.0085732,119670.0,119660.0,0.53583411]
[1753670409134,0.73196,119670.0,119660.0,0.61940073]
[1753670409325,1.0085732,119670.0,119660.0,0.61940073]
[1753670409527,1.0080532,119670.0,119660.0,0.61940073]
[1753670410730,0.73144,119670.0,119660.0,0.72724932]
[1753670410935,1.05560795,119670.0,119660.0,0.78649343]
[1753670411135,1.05660795,119670.0,119660.0,0.78649343]
[1753670411332,0.73244,119670.0,119660.0,0.78649343]
[1753670411533,1.05660795,119670.0,119660.0,0.78649343]
[1753670411828,1.05660795,119670.0,119660.0,0.61940073]
[1753670412631,0.73244,119670.0,119660.0,0.78649343]
[1753670412833,1.05660795,119670.0,119660.0,0.78649343]
[1753670413032,1.05660795,119670.0,119660.0,0.61940073]
[1753670413234,0.73244,119670.0,119660.0,0.61940073]
[1753670413537,1.05660795,119670.0,119660.0,0.38014073]
[1753670414243,1.05660795,119670.0,119660.0,0.54608073]
[1753670414438,1.05660795,119670.0,119660.0,0.61940073]
[1753670414640,1.05660795,119670.0,119660.0,0.56015662]
[1753670414838,1.05660795,119670.0,119660.0,0.61940073]
[1753670415233,0.73244,119670.0,119660.0,0.61940073]
[1753670415439,1.05660795,119670.0,119660.0,0.78649343]
[1753670415639,0.73244,119670.0,119660.0,0.61940073]
[1753670415842,1.05660795,119670.0,119660.0,0.61940073]
[1753670417239,1.05660795,119670.0,119660.0,0.56015662]
[1753670417843,1.05660795,119670.0,119660.0,0.72724942]
[1753670422047,0.73244,119670.0,119660.0,0.72724942]
[1753670422352,1.05660795,119670.0,119660.0,0.72724942]
[1753670423948,1.05660795,119670.0,119660.0,0.72724952]
[1753670424754,0.73244,119670.0,119660.0,0.72724952]
[1753670424954,1.05660795,119670.0,119660.0,0.72724952]
[1753670425255,0.73244,119670.0,119660.0,0.72724952]
[1753670425458,1.05660795,119670.0,119660.0,0.72724952]
[1753670425949,0.73244,119670.0,119660.0,0.72724952]
[1753670427354,0.73244,119670.0,119660.0,0.80134487]
[1753670427947,1.05660795,119670.0,119660.0,0.80134487]
[1753670428561,1.22368675,119670.0,119660.0,0.07409535]
[1753670428755,1.26545735,119670.0,119650.0,0.04897]
[1753670428955,0.49126075,119660.0,119650.0,0.05940253]
[1753670430458,0.49126075,119660.0,119650.0,0.06040253]
[1753670430656,0.83382511,119660.0,119650.0,0.06040253]
[1753670430854,0.1671067,119650.0,119630.0,0.19737889]
[1753670431157,1.22384865,119640.0,119630.0,0.14297642]
[1753670431363,1.07547582,119640.0,119630.0,0.14297642]
[1753670432559,1.07547582,119640.0,119630.0,0.14497642]
[1753670433060,1.24259652,119640.0,119630.0,0.14497642]
[1753670433252,1.07547582,119640.0,119630.0,0.14497642]
[1753670433457,1.07547582,119640.0,119630.0,0.14797642]
[1753670433458,0.75130787,119640.0,119630.0,0.14797642]
[1753670433659,1.07547582,119640.0,119630.0,0.14797642]
[1753670434063,0.75130787,119640.0,119630.0,0.14797642]
[1753670434263,1.07547582,119640.0,119630.0,0.14797642]
[1753670436063,0.75130787,119640.0,119630.0,0.14797642]
[1753670436263,1.07547582,119640.0,119630.0,0.14797642]
[1753670436759,1.47210557,119640.0,119630.0,0.14797642]
[1753670437156,0.75130787,119640.0,119630.0,0.14797642]
[1753670437460,1.30498497,119640.0,119630.0,0.14797642]
[1753670439666,0.75130787,119640.0,119630.0,0.14797642]
[1753670439861,1.30498497,119640.0,119630.0,0.14797642]
[1753670442767,0.75130787,119640.0,119630.0,0.14797642]
[1753670443068,1.30498497,119640.0,119630.0,0.14797642]
[1753670444867,1.47210567,119640.0,119630.0,0.14797642]
[1753670446069,1.30498497,119640.0,119630.0,0.14797642]
[1753670448170,1.30498497,119640.0,119630.0,0.31703642]
[1753670448371,1.30498497,119640.0,119630.0,0.57624642]
[1753670448763,0.29558642,119640.0,119630.0,0.82696839]
[1753670448969,1.02258642,119640.0,119630.0,0.82696839]
[1753670449271,1.02258642,119640.0,119630.0,0.88629335]
[1753670452672,0.74574787,119640.0,119630.0,1.1631319]
[1753670452862,0.727,119640.0,119630.0,1.10380694]
[1753670453064,0.727,119640.0,119630.0,1.17790229]
[1753670453270,0.727,119640.0,119630.0,0.90106374]
[1753670455376,0.70248001,119640.0,119630.0,0.90106374]
[1753670456476,0.68802001,119640.0,119630.0,0.90106374]
[1753670457178,0.68802001,119640.0,119630.0,0.82696839]
[1753670457874,0.68802001,119640.0,119630.0,0.90118369]
[1753670458073,0.68802001,119640.0,119630.0,0.82696839]
[1753670459476,0.01897775,119680.0,119660.0,0.30619]
[1753670459678,0.2958163,119680.0,119670.0,0.07745]
[1753670459879,1.0225763,119680.0,119670.0,0.6308385]
[1753670460078,0.74573775,119680.0,119670.0,0.77382049]
[1753670460373,1.0225763,119680.0,119670.0,0.60674199]
[1753670461079,1.0245763,119680.0,119670.0,0.77382049]